bitfinex/quotes_BTCUSD_20240701
["timestamp","ask_amount","ask_price","bid_price","bid_amount"]
[1719825626995,3.52377358,62938.0,62937.0,0.0001]
[1719825627198,3.5871136,62938.0,62937.0,0.0001]
[1719825628263,4.0501436,62938.0,62937.0,1e-06]
[1719825628464,4.20971899,62938.0,62937.0,1e-06]
[1719825628686,4.25710647,62938.0,62937.0,1e-06]
[1719825628817,4.09753108,62938.0,62937.0,1e-06]
[1719825628998,4.79753108,62938.0,62937.0,1e-06]
[1719825630223,4.70571995,62938.0,62937.0,1e-06]
[1719825630420,4.7963178,62938.0,62937.0,1e-06]
[1719825630653,4.7823178,62938.0,62937.0,1e-06]
[1719825631067,2.22188817,62929.0,62928.0,0.01626484]
[1719825631290,2.90825597,62929.0,62928.0,0.01626484]
[1719825631481,2.9156233,62929.0,62928.0,0.01626484]
[1719825632008,2.9565972,62929.0,62928.0,0.01626484]
[1719825632337,3.09847418,62929.0,62928.0,0.01626484]
[1719825632553,3.11247418,62929.0,62928.0,0.01626484]
[1719825632718,3.12647418,62929.0,62928.0,0.01626484]
[1719825633527,3.12631107,62929.0,62928.0,0.01626484]
[1719825635279,2.98440328,62929.0,62928.0,0.01626484]
[1719825635487,3.12632766,62929.0,62928.0,0.01626484]
[1719825636085,3.18430328,62929.0,62928.0,0.01626484]
[1719825636321,2.98440328,62929.0,62928.0,0.01626484]
[1719825636723,2.98400339,62929.0,62928.0,0.01626484]
[1719825637065,2.98404683,62929.0,62928.0,0.01626484]
[1719825637809,2.84534683,62929.0,62928.0,0.01626484]
[1719825638016,2.98729286,62929.0,62928.0,0.01626484]
[1719825639800,2.98734542,62929.0,62928.0,0.01626484]
[1719825640005,2.98734539,62929.0,62928.0,0.01626484]
[1719825640784,2.84538497,62929.0,62928.0,0.01626484]
[1719825642608,2.64538497,62929.0,62928.0,0.10216484]
[1719825642901,2.84538497,62929.0,62928.0,0.10216484]
[1719825643085,2.82217558,62929.0,62928.0,0.10216484]
[1719825643733,2.84234839,62929.0,62928.0,0.10216484]
[1719825644140,2.98434424,62929.0,62928.0,0.10216484]
[1719825645566,2.84234839,62929.0,62928.0,0.01626484]
[1719825646343,2.84167,62929.0,62928.0,0.01626484]
[1719825649500,2.84124403,62929.0,62928.0,0.01626484]
[1719825649944,2.82731112,62929.0,62928.0,0.01626484]
[1719825650258,2.84076016,62929.0,62928.0,0.01626484]
[1719825650983,2.901694,62929.0,62928.0,0.01626484]
[1719825651202,3.101594,62929.0,62928.0,0.01626484]
[1719825651488,3.029394,62929.0,62928.0,0.01626484]
[1719825651729,3.101594,62929.0,62928.0,0.01626484]
[1719825652164,2.901694,62929.0,62928.0,0.01626484]
[1719825652407,2.82716833,62929.0,62928.0,0.01626484]
[1719825652604,2.90008293,62929.0,62928.0,0.01626484]
[1719825654072,3.09998293,62929.0,62928.0,0.01626484]
[1719825654279,4.01380093,62929.0,62928.0,8.4e-07]
[1719825654528,4.12598841,62929.0,62928.0,8.4e-07]
[1719825655175,4.11198841,62929.0,62928.0,8.4e-07]
[1719825655548,4.03913626,62929.0,62928.0,8.4e-07]
[1719825655748,4.12641935,62929.0,62928.0,8.4e-07]
[1719825655964,4.09841935,62929.0,62928.0,8.4e-07]
[1719825657209,4.12641935,62929.0,62928.0,8.4e-07]
[1719825657820,2.01209817,62925.0,62924.0,0.00165237]
[1719825658026,2.69399832,62925.0,62924.0,0.00165237]
[1719825658362,2.7409779,62925.0,62924.0,0.00165237]
[1719825658762,2.80115121,62925.0,62924.0,0.00165237]
[1719825660022,2.72895121,62925.0,62924.0,0.00165237]
[1719825660226,2.80115121,62925.0,62924.0,0.00165237]
[1719825660439,2.71895121,62925.0,62924.0,0.00165237]
[1719825660607,2.1608177,62925.0,62924.0,0.15425237]
[1719825660909,2.1026177,62925.0,62924.0,0.15425237]
[1719825661210,2.13699425,62925.0,62924.0,0.15425237]
[1719825661716,2.1369943,62925.0,62924.0,0.15425237]
[1719825661972,2.29932801,62925.0,62924.0,0.15425237]
[1719825662169,2.0647943,62925.0,62924.0,0.15425237]
[1719825662378,2.0044204,62925.0,62924.0,0.15425237]
[1719825662576,1.6865824,62925.0,62924.0,0.15425237]
[1719825662873,1.3687444,62925.0,62924.0,0.15425237]
[1719825663415,1.3547444,62925.0,62924.0,0.15425237]
[1719825663929,1.3637444,62925.0,62924.0,0.15425237]
[1719825664130,1.3494354,62925.0,62924.0,0.15517637]
[1719825664331,1.3564354,62925.0,62924.0,0.15517637]
[1719825664601,1.1269164,62925.0,62924.0,0.15517637]
[1719825664801,1.1269164,62925.0,62924.0,0.18334942]
[1719825664802,0.27827404,62925.0,62924.0,0.18334942]
[1719825665110,0.58811204,62925.0,62924.0,0.15577637]
[1719825665283,0.27027404,62925.0,62924.0,0.15577637]
[1719825665484,0.27527404,62925.0,62924.0,0.15577637]
[1719825665764,0.07176587,62925.0,62924.0,0.15577637]
[1719825665927,0.05972031,62925.0,62924.0,0.19984282]
[1719825666067,0.05972031,62925.0,62924.0,0.19924282]
[1719825666270,0.25050817,62925.0,62924.0,0.19924282]
[1719825666472,0.58424705,62925.0,62924.0,0.19924282]
[1719825666673,0.58424705,62925.0,62924.0,0.19984282]
[1719825667282,0.58324705,62925.0,62924.0,0.19984282]
[1719825667646,0.26140905,62925.0,62924.0,0.19984282]
[1719825667800,0.57824705,62925.0,62924.0,0.19924282]
[1719825668231,0.57924705,62925.0,62924.0,0.19984282]
[1719825668428,0.58124705,62925.0,62924.0,0.19984282]
[1719825668825,0.58124705,62925.0,62924.0,0.19924282]
[1719825669031,0.57924705,62925.0,62924.0,0.19924282]
[1719825669465,0.58024705,62925.0,62924.0,0.15517637]
[1719825669685,0.26240905,62925.0,62924.0,0.15577637]
[1719825669983,0.01790088,62925.0,62924.0,0.15577637]
[1719825670182,0.002,62925.0,62924.0,0.63254037]
[1719825670418,0.002,62925.0,62924.0,0.74354412]
[1719825670616,0.001,62925.0,62924.0,0.74354412]
[1719825671016,0.002,62925.0,62924.0,0.74354412]
[1719825671170,0.001,62925.0,62924.0,0.74354412]
[1719825671373,0.0001,62929.0,62928.0,0.0006]
[1719825671374,0.0411,62929.0,62928.0,0.0006]
[1719825671694,0.0411,62929.0,62928.0,0.38450471]
[1719825671833,0.05692599,62929.0,62928.0,0.38450471]
[1719825672066,0.0411,62929.0,62928.0,1.02015071]
[1719825672267,0.0001,62929.0,62928.0,1.02015071]
[1719825672772,0.0001,62929.0,62928.0,1.22015071]
[1719825673634,0.0011,62929.0,62928.0,1.02015071]
[1719825673990,0.0021,62929.0,62928.0,1.22015071]
[1719825674521,0.0021,62929.0,62928.0,1.02015071]
[1719825675538,0.0021,62929.0,62928.0,1.53797371]
[1719825675891,0.0021,62929.0,62928.0,1.56097371]
[1719825676581,0.0021,62929.0,62928.0,1.04255071]
[1719825676723,0.0021,62929.0,62928.0,0.70232771]
[1719825678456,0.0021,62929.0,62928.0,0.38450471]
[1719825678834,0.0180912,62929.0,62928.0,0.38450471]
[1719825679038,0.0021,62929.0,62928.0,0.38450471]
[1719825679198,0.0180912,62929.0,62928.0,0.38450471]
[1719825679605,0.53940737,62929.0,62928.0,0.22499371]
[1719825679805,0.53940737,62929.0,62928.0,0.1465]
[1719825681050,0.0180912,62929.0,62928.0,0.1465]
[1719825682095,0.06268037,62929.0,62928.0,0.1465]
[1719825682866,0.22158937,62929.0,62928.0,0.1465]
[1719825683067,0.22158937,62929.0,62928.0,0.21630334]
[1719825683276,0.22158937,62929.0,62928.0,0.21570334]
[1719825683476,0.85722537,62929.0,62928.0,0.21570334]
[1719825683686,0.85722537,62929.0,62928.0,0.1459]
[1719825685530,1.17504337,62929.0,62928.0,0.1459]
[1719825685733,1.17504337,62929.0,62928.0,0.0801]
[1719825686145,0.83918417,62925.0,62924.0,0.00317637]
[1719825686346,0.83918417,62925.0,62924.0,0.03051942]
[1719825686852,0.85522486,62925.0,62924.0,0.03051942]
[1719825688479,0.85722486,62925.0,62924.0,0.02991942]
[1719825688954,1.33740184,62925.0,62924.0,0.02991942]
[1719825689224,1.33740184,62925.0,62924.0,0.00257637]
[1719825689436,1.37840184,62925.0,62924.0,0.00257637]
[1719825690347,1.37740184,62925.0,62924.0,0.00257637]
[1719825690788,1.38140184,62925.0,62924.0,0.00257637]
[1719825691235,1.33540184,62925.0,62924.0,0.00257637]
[1719825691530,1.37940184,62925.0,62924.0,0.00257637]
[1719825692057,1.39141216,62925.0,62924.0,0.00257637]
[1719825693015,1.41081216,62925.0,62924.0,0.00257637]
[1719825693528,1.39880184,62925.0,62924.0,0.00257637]
[1719825693769,1.41082364,62925.0,62924.0,0.00257637]
[1719825696524,1.39880184,62925.0,62924.0,0.00257637]
[1719825696694,1.48295185,62925.0,62924.0,0.00257637]
[1719825696902,2.01797791,62925.0,62924.0,0.00257637]
[1719825697122,1.98604653,62925.0,62924.0,0.00257637]
[1719825697756,1.98504653,62925.0,62924.0,0.00257637]
[1719825697957,1.98304653,62925.0,62924.0,0.00257637]
[1719825698332,1.99204653,62925.0,62924.0,0.00257637]
[1719825698528,1.98804653,62925.0,62924.0,0.00257637]
[1719825698809,2.03550787,62925.0,62924.0,0.00257637]
[1719825699837,2.1208048,62925.0,62924.0,0.00257637]
[1719825700079,2.1158048,62925.0,62924.0,0.00257637]
[1719825700233,2.11074992,62925.0,62924.0,0.00257637]
[1719825700446,2.12280453,62925.0,62924.0,0.00257637]
[1719825700666,2.11580453,62925.0,62924.0,0.00257637]
[1719825700859,2.10980453,62925.0,62924.0,0.00257637]
[1719825701062,2.11980453,62925.0,62924.0,0.00257637]
[1719825701565,2.13080453,62925.0,62924.0,0.00257637]
[1719825702857,2.11676171,62925.0,62924.0,0.00257637]
[1719825703061,2.13090213,62925.0,62924.0,0.00257637]
[1719825703696,2.14090213,62925.0,62924.0,0.00257637]
[1719825704099,2.12990213,62925.0,62924.0,0.00257637]
[1719825704307,2.11990213,62925.0,62924.0,0.00257637]
[1719825704513,2.13390213,62925.0,62924.0,0.00257637]
[1719825704741,2.14790213,62925.0,62924.0,0.00257637]
[1719825704987,2.11990213,62925.0,62924.0,0.00257637]
[1719825705336,2.12390213,62925.0,62924.0,0.00257637]
[1719825705558,2.13390213,62925.0,62924.0,0.00257637]
[1719825705958,2.12390213,62925.0,62924.0,0.00257637]
[1719825706155,2.10966362,62925.0,62924.0,0.00257637]
[1719825706457,2.13684782,62925.0,62924.0,0.00257637]
[1719825706955,2.14684782,62925.0,62924.0,0.00257637]
[1719825707140,2.66468582,62925.0,62924.0,0.00257637]
[1719825708635,2.70577449,62925.0,62924.0,0.00257637]
[1719825709393,2.65262785,62925.0,62924.0,0.00257637]
[1719825709542,2.67771519,62925.0,62924.0,0.00257637]
[1719825709725,2.67856594,62925.0,62924.0,0.00257637]
[1719825709943,2.69171451,62925.0,62924.0,0.00257637]
[1719825710142,2.63662584,62925.0,62924.0,0.00257637]
[1719825710625,2.65062584,62925.0,62924.0,0.00257637]
[1719825711147,3.04436274,62925.0,62924.0,0.00257637]
[1719825711395,3.03036274,62925.0,62924.0,0.00257637]
[1719825711717,2.64432474,62925.0,62924.0,0.00257637]
[1719825711918,2.71652474,62925.0,62924.0,0.00257637]
[1719825712158,2.70252474,62925.0,62924.0,0.00257637]
[1719825712363,2.72652474,62925.0,62924.0,0.00257637]
[1719825712562,2.71282919,62925.0,62924.0,0.00257637]
[1719825712768,2.49133932,62925.0,62924.0,0.00257637]
[1719825712967,2.68843932,62925.0,62924.0,0.00257637]
[1719825713325,2.71551871,62925.0,62924.0,0.00257637]
[1719825713710,2.72951871,62925.0,62924.0,0.00257637]
[1719825713916,2.97680619,62925.0,62924.0,0.00257637]
[1719825714115,3.08137619,62925.0,62924.0,0.00257637]
[1719825714313,3.06737619,62925.0,62924.0,0.00257637]
[1719825714517,3.39921419,62925.0,62924.0,0.00257637]
[1719825715077,4.09921419,62925.0,62924.0,0.00257637]
[1719825715281,4.11321419,62925.0,62924.0,0.00257637]
[1719825715463,4.09979959,62925.0,62924.0,0.00257637]
[1719825715658,4.09912479,62925.0,62924.0,0.00257637]
[1719825716116,3.91322479,62925.0,62924.0,0.00257637]
[1719825716318,5.0638887,62925.0,62924.0,0.00257637]
[1719825716514,4.92185507,62925.0,62924.0,0.00257637]
[1719825717348,4.92185507,62925.0,62921.0,0.109251]
[1719825717349,3.04410317,62922.0,62921.0,0.109251]
[1719825717577,3.04410317,62922.0,62911.0,0.1]
[1719825717578,1.14504517,62912.0,62911.0,0.1]
[1719825717779,1.86386925,62912.0,62911.0,0.1]
[1719825717979,2.73147755,62912.0,62911.0,0.1]
[1719825718206,2.89381126,62912.0,62911.0,0.1]
[1719825718356,3.09381126,62912.0,62911.0,0.1]
[1719825718723,3.10501343,62912.0,62911.0,0.1]
[1719825718987,3.11901343,62912.0,62911.0,0.1]
[1719825719802,2.31116258,62912.0,62911.0,0.1]
[1719825720006,2.33557576,62912.0,62911.0,0.1]
[1719825720460,1.87737576,62912.0,62911.0,0.1]
[1719825720679,1.83353984,62912.0,62911.0,0.1]
[1719825720930,1.85293984,62912.0,62911.0,0.1]
[1719825721108,2.01525161,62912.0,62911.0,0.1]
[1719825721706,2.37403468,62912.0,62911.0,0.1]
[1719825721908,2.45755329,62912.0,62911.0,0.1]
[1719825722409,2.47155329,62912.0,62911.0,0.1]
[1719825723072,2.45755329,62912.0,62911.0,0.1]
[1719825723295,2.47155329,62912.0,62911.0,0.1]
[1719825723948,2.48155329,62912.0,62911.0,0.1]
[1719825724155,2.48217078,62912.0,62911.0,0.1]
[1719825724352,2.80007478,62912.0,62911.0,0.1]
[1719825725337,2.86376878,62912.0,62911.0,0.1]
[1719825726326,2.90485478,62912.0,62911.0,0.1]
[1719825727363,2.90414575,62912.0,62911.0,0.1]
[1719825727703,2.89014575,62912.0,62911.0,0.1]
[1719825728123,2.90414575,62912.0,62911.0,0.1]
[1719825728771,2.89014575,62912.0,62911.0,0.1]
[1719825729188,2.90414575,62912.0,62911.0,0.1]
[1719825729611,2.84905975,62912.0,62911.0,0.1]
[1719825730036,2.86305975,62912.0,62911.0,0.1]
[1719825730502,2.8633445,62912.0,62911.0,0.1]
[1719825730852,2.90444224,62912.0,62911.0,0.1]
[1719825731058,3.51781624,62912.0,62911.0,0.1]
[1719825731281,3.34091624,62912.0,62911.0,0.1]
[1719825731488,3.39204999,62912.0,62911.0,0.1]
[1719825731689,3.59194999,62912.0,62911.0,0.1]
[1719825731866,3.34104999,62912.0,62911.0,0.095]
[1719825732276,3.34104999,62912.0,62903.0,0.0217364]
[1719825732277,3.08152717,62907.0,62903.0,0.0217364]
[1719825732479,3.4948048,62907.0,62906.0,0.03627946]
[1719825732702,3.50964786,62907.0,62906.0,0.03627946]
[1719825734071,2.80689985,62907.0,62906.0,0.03627946]
[1719825734216,2.84836119,62907.0,62906.0,0.03627946]
[1719825734394,2.07616119,62907.0,62906.0,0.03127946]
[1719825734604,2.03469985,62907.0,62906.0,0.19037946]
[1719825734797,2.06580211,62907.0,62906.0,0.19037946]
[1719825735203,2.07980211,62907.0,62906.0,0.19037946]
[1719825735416,1.94254487,62907.0,62906.0,0.19037946]
[1719825735634,1.94794487,62907.0,62906.0,0.19037946]
[1719825735839,2.07398571,62907.0,62906.0,0.19037946]
[1719825736017,2.08798571,62907.0,62906.0,0.19037946]
[1719825736197,2.05998571,62907.0,62906.0,0.19037946]
[1719825736400,2.07364247,62907.0,62906.0,0.19037946]
[1719825736607,2.05964247,62907.0,62906.0,0.19037946]
[1719825736996,1.94024247,62907.0,62906.0,0.19037946]
[1719825737164,1.40175068,62907.0,62906.0,0.19037946]
[1719825737368,1.38775068,62907.0,62906.0,0.19037946]
[1719825737972,1.40175068,62907.0,62906.0,0.19037946]
[1719825738375,1.40712683,62907.0,62906.0,0.19037946]
[1719825738602,1.66407288,62907.0,62906.0,0.19037946]
[1719825738828,1.66407288,62907.0,62906.0,0.03127946]
[1719825738829,1.7221487,62907.0,62906.0,0.03127946]
[1719825739234,2.0400777,62907.0,62906.0,0.03127946]
[1719825739433,2.0260777,62907.0,62906.0,0.03127946]
[1719825739615,2.0350777,62907.0,62906.0,0.03127946]
[1719825739826,1.99895783,62907.0,62906.0,0.03127946]
[1719825740027,2.02685124,62907.0,62906.0,0.03127946]
[1719825740227,2.01785124,62907.0,62906.0,0.03127946]
[1719825740675,2.03185124,62907.0,62906.0,0.03127946]
[1719825740887,2.04185124,62907.0,62906.0,0.03127946]
[1719825741289,2.55978024,62907.0,62906.0,0.03127946]
[1719825741529,2.60088181,62907.0,62906.0,0.03127946]
[1719825742112,2.61488181,62907.0,62906.0,0.03127946]
[1719825742311,2.60088181,62907.0,62906.0,0.03127946]
[1719825742520,2.69645181,62907.0,62906.0,0.03127946]
[1719825742727,2.71945181,62907.0,62906.0,0.03127946]
[1719825742936,2.8521584,62907.0,62906.0,0.03127946]
[1719825743134,2.96847336,62907.0,62906.0,0.03127946]
[1719825744334,3.28640236,62907.0,62906.0,0.03127946]
[1719825744998,2.96847336,62907.0,62906.0,0.03127946]
[1719825745205,2.94047336,62907.0,62906.0,0.03127946]
[1719825745422,2.96847336,62907.0,62906.0,0.03127946]
[1719825745829,3.25840236,62907.0,62906.0,0.03127946]
[1719825746050,3.14392683,62907.0,62906.0,0.03127946]
[1719825746292,3.28668214,62907.0,62906.0,0.03127946]
[1719825746493,2.96875314,62907.0,62906.0,0.03127946]
[1719825746694,3.28673109,62907.0,62906.0,0.03127946]
[1719825747105,3.65423109,62907.0,62906.0,0.03127946]
[1719825747329,3.45433109,62907.0,62906.0,0.03127946]
[1719825748266,3.65423109,62907.0,62906.0,0.03127946]
[1719825748469,3.45433109,62907.0,62906.0,0.03127946]
[1719825748876,3.65423109,62907.0,62906.0,0.03127946]
[1719825749105,3.63437081,62907.0,62906.0,0.03127946]
[1719825749320,2.71669617,62906.0,62905.0,4.6e-07]
[1719825749532,1.63703117,62904.0,62903.0,8.6e-07]
[1719825749760,2.83712949,62904.0,62903.0,8.6e-07]
[1719825749961,3.90006149,62904.0,62903.0,8.6e-07]
[1719825750099,4.53136257,62904.0,62903.0,8.6e-07]
[1719825750299,4.38921101,62904.0,62903.0,8.6e-07]
[1719825750726,4.46965403,62904.0,62903.0,8.6e-07]
[1719825750941,4.26975403,62904.0,62903.0,8.6e-07]
[1719825751179,4.00182095,62904.0,62903.0,8.6e-07]
[1719825751316,2.02276317,62901.0,62900.0,0.74457724]
[1719825751521,2.37377349,62901.0,62900.0,0.74457724]
[1719825751722,2.41487506,62901.0,62900.0,0.74457724]
[1719825751953,2.42709584,62901.0,62900.0,0.74457724]
[1719825752121,2.50753886,62901.0,62900.0,0.74457724]
[1719825752329,2.69959504,62901.0,62900.0,0.74457724]
[1719825752717,2.71359504,62901.0,62900.0,0.74457724]
[1719825753435,2.69959504,62901.0,62900.0,0.74457724]
[1719825753614,2.72759504,62901.0,62900.0,0.74457724]
[1719825754658,3.36402404,62901.0,62900.0,0.74457724]
[1719825754865,3.43442404,62901.0,62900.0,0.74457724]
[1719825755279,3.44234404,62901.0,62900.0,0.74457724]
[1719825755485,3.38406718,62901.0,62900.0,0.74457724]
[1719825755696,3.75208464,62901.0,62900.0,0.74457724]
[1719825756558,3.60992896,62901.0,62900.0,0.74457724]
[1719825756902,3.58192896,62901.0,62900.0,0.74457724]
[1719825757107,3.59592896,62901.0,62900.0,0.74457724]
[1719825757838,3.68092896,62901.0,62900.0,0.74457724]
[1719825757989,4.38092896,62901.0,62900.0,0.74457724]
[1719825758437,5.09474096,62901.0,62900.0,0.74457724]
[1719825758589,5.01301839,62901.0,62900.0,0.68987382]
[1719825758791,5.11225512,62901.0,62900.0,0.68987382]
[1719825758990,5.11227739,62901.0,62900.0,0.68987382]
[1719825759213,5.33895365,62901.0,62900.0,0.66787382]
[1719825759418,1.29925617,62894.0,62893.0,1.9e-07]
[1719825759618,1.45505917,62893.0,62885.0,0.04578598]
[1719825759816,2.2549047,62893.0,62885.0,0.04578598]
[1719825760019,2.26463239,62893.0,62885.0,0.04578598]
[1719825760218,3.85463239,62893.0,62892.0,0.97672548]
[1719825760449,4.40093787,62893.0,62892.0,0.60357496]
[1719825760671,5.10093787,62893.0,62892.0,0.60357496]
[1719825761665,5.1018583,62893.0,62892.0,0.60357496]
[1719825761869,5.10265511,62893.0,62892.0,0.60357496]
[1719825762070,5.89765611,62893.0,62892.0,0.22329441]
[1719825762354,5.91165611,62893.0,62892.0,0.15810493]
[1719825762580,5.47888311,62893.0,62892.0,0.03869993]
[1719825762784,6.26584511,62893.0,62892.0,0.03869993]
[1719825762981,5.91429711,62893.0,62892.0,0.03869993]
[1719825763184,5.04155111,62893.0,62892.0,0.03869993]
[1719825763473,4.99489414,62893.0,62892.0,0.03869993]
[1719825764718,5.01150767,62893.0,62892.0,9.3e-07]
[1719825764933,4.65383867,62893.0,62892.0,9.3e-07]
[1719825767138,4.79580081,62893.0,62892.0,9.3e-07]
[1719825767361,4.65383867,62893.0,62892.0,9.3e-07]
[1719825767598,4.65383181,62893.0,62892.0,9.3e-07]
[1719825767845,4.24172089,62893.0,62892.0,9.3e-07]
[1719825768123,4.26380789,62893.0,62892.0,9.3e-07]
[1719825768749,4.24980789,62893.0,62892.0,9.3e-07]
[1719825769037,4.23980789,62893.0,62892.0,9.3e-07]
[1719825769344,3.11502436,62893.0,62892.0,9.3e-07]
[1719825769568,2.53475686,62893.0,62892.0,9.3e-07]
[1719825770241,2.52475686,62893.0,62892.0,9.3e-07]
[1719825770478,2.51075686,62893.0,62892.0,9.3e-07]
[1719825770676,2.31075686,62893.0,62892.0,9.3e-07]
[1719825770823,2.09135686,62893.0,62892.0,9.3e-07]
[1719825771023,1.93543546,62893.0,62892.0,0.16330093]
[1719825771239,1.87875134,62893.0,62892.0,0.16330093]
[1719825771414,1.94900206,62893.0,62892.0,0.16330093]
[1719825771616,1.94840925,62893.0,62892.0,0.16330093]
[1719825771927,1.93440925,62893.0,62892.0,0.16330093]
[1719825772134,1.95840925,62893.0,62892.0,0.16330093]
[1719825772330,2.07240925,62893.0,62892.0,0.16330093]
[1719825772704,2.04438229,62893.0,62892.0,0.16330093]
[1719825772835,2.05838229,62893.0,62892.0,0.16330093]
[1719825773059,2.25838229,62893.0,62892.0,0.16330093]
[1719825773264,2.24838229,62893.0,62892.0,0.16330093]
[1719825773473,2.26238229,62893.0,62892.0,0.16330093]
[1719825774328,2.22655405,62893.0,62892.0,0.16330093]
[1719825774535,2.26215485,62893.0,62892.0,0.16330093]
[1719825774879,2.24815485,62893.0,62892.0,0.16330093]
[1719825775624,2.26215485,62893.0,62892.0,0.16330093]
[1719825775872,2.23415485,62893.0,62892.0,0.16330093]
[1719825776070,2.24815485,62893.0,62892.0,0.16330093]
[1719825776242,2.26215485,62893.0,62892.0,0.16330093]
[1719825777209,2.25969555,62893.0,62892.0,0.16330093]
[1719825777769,1.46547416,62893.0,62892.0,0.16330093]
[1719825777894,1.14747416,62893.0,62892.0,0.16330093]
[1719825778114,1.14020577,62893.0,62892.0,0.16330093]
[1719825778471,1.45820577,62893.0,62892.0,0.16330093]
[1719825778667,1.47760577,62893.0,62892.0,0.16330093]
[1719825778804,1.62536635,62893.0,62892.0,0.16330093]
[1719825779414,1.72536635,62893.0,62892.0,0.16330093]
[1719825780560,1.65768145,62893.0,62892.0,0.16330093]
[1719825780761,1.72588786,62893.0,62892.0,0.16330093]
[1719825781738,1.70648786,62893.0,62892.0,0.16330093]
[1719825782385,2.04388786,62893.0,62892.0,0.16330093]
[1719825783105,1.97568145,62893.0,62892.0,0.16330093]
[1719825783292,2.04411461,62893.0,62892.0,0.16330093]
[1719825783493,2.04411369,62893.0,62892.0,0.16330093]
[1719825786097,2.04388996,62893.0,62892.0,0.16330093]
[1719825789099,2.04388996,62893.0,62892.0,9.3e-07]
[1719825789306,1.97568145,62893.0,62892.0,9.3e-07]
[1719825789511,2.04410409,62893.0,62892.0,9.3e-07]
[1719825792359,2.04410409,62893.0,62892.0,0.00092493]
[1719825792537,2.04505681,62893.0,62892.0,0.00092493]
[1719825793116,2.24505681,62893.0,62892.0,0.00092493]
[1719825793356,2.28619272,62893.0,62892.0,0.00092493]
[1719825794179,2.29619272,62893.0,62892.0,0.00092493]
[1719825794470,2.28619272,62893.0,62892.0,0.00092493]
[1719825795430,2.37615123,62893.0,62892.0,0.00092493]
[1719825795769,2.37607681,62893.0,62892.0,0.00092493]
[1719825795967,2.36207681,62893.0,62892.0,0.00092493]
[1719825796165,2.6900777,62893.0,62892.0,0.00092493]
[1719825796377,3.02735042,62893.0,62892.0,0.00092493]
[1719825796568,3.0720777,62893.0,62892.0,0.00092493]
[1719825797018,2.8709777,62893.0,62892.0,0.00092493]
[1719825797219,2.8569777,62893.0,62892.0,0.00092493]
[1719825797423,2.82246057,62893.0,62892.0,0.00092493]
[1719825797981,2.83646057,62893.0,62892.0,0.00092493]
[1719825798413,2.82246057,62893.0,62892.0,0.00092493]
[1719825798636,2.83646057,62893.0,62892.0,0.00092493]
[1719825798839,2.83641632,62893.0,62892.0,0.00092493]
[1719825799051,1.71027977,62893.0,62892.0,0.00092493]
[1719825799248,1.71027977,62893.0,62892.0,0.09932493]
[1719825799662,1.69087977,62893.0,62892.0,0.09932493]
[1719825799907,1.69087977,62893.0,62892.0,0.21752493]
[1719825799908,1.60092145,62893.0,62892.0,0.21752493]
[1719825800055,1.7629536,62893.0,62892.0,0.21752493]
[1719825800259,1.73581769,62893.0,62892.0,0.21752493]
[1719825800506,1.70781769,62893.0,62892.0,0.21752493]
[1719825800916,1.53178554,62893.0,62892.0,0.21752493]
[1719825801270,1.54578554,62893.0,62892.0,0.21752493]
[1719825801822,1.53178554,62893.0,62892.0,0.21752493]
[1719825801998,1.48946709,62893.0,62892.0,0.21752493]
[1719825802215,1.54319841,62893.0,62892.0,0.21752493]
[1719825802666,1.55319841,62893.0,62892.0,0.21752493]
[1719825803276,1.23519841,62893.0,62892.0,0.21812493]
[1719825803484,1.23519841,62893.0,62892.0,0.21752493]
[1719825804451,1.39051645,62893.0,62892.0,0.21752493]
[1719825804649,1.23519841,62893.0,62892.0,0.21812493]
[1719825804870,1.23519841,62893.0,62892.0,0.21752493]
[1719825805075,0.90509219,62893.0,62892.0,0.21812493]
[1719825805278,0.91719423,62893.0,62892.0,0.21812493]
[1719825806083,0.91719423,62893.0,62892.0,0.21752493]
[1719825806084,1.23519423,62893.0,62892.0,0.21752493]
[1719825806325,1.23519423,62893.0,62892.0,0.21812493]
[1719825806564,0.91719423,62893.0,62892.0,0.21752493]
[1719825806782,0.91719423,62893.0,62892.0,0.21812493]
[1719825807342,0.91719423,62893.0,62892.0,0.21752493]
[1719825808330,0.91738247,62893.0,62892.0,0.21752493]
[1719825808541,1.07271832,62893.0,62892.0,0.21812493]
[1719825808730,1.07268627,62893.0,62892.0,0.21812493]
[1719825808934,1.0266869,62893.0,62892.0,0.21812493]
[1719825809153,0.87135105,62893.0,62892.0,0.21812493]
[1719825811485,0.8713376,62893.0,62892.0,0.21812493]
[1719825811896,0.2533376,62893.0,62892.0,0.21812493]
[1719825812097,0.09099862,62893.0,62892.0,0.21812493]
[1719825812269,0.07889703,62893.0,62892.0,0.21812493]
[1719825813097,0.23789703,62893.0,62892.0,0.21812493]
[1719825813987,0.23789703,62893.0,62892.0,0.21752493]
[1719825813988,1.04842324,62893.0,62892.0,0.21752493]
[1719825814166,1.04842324,62893.0,62892.0,0.21812493]
[1719825814569,1.04842505,62893.0,62892.0,0.21812493]
[1719825815919,1.04842505,62893.0,62892.0,0.21752493]
[1719825816556,1.04842505,62893.0,62892.0,0.21812493]
[1719825817174,1.04842505,62893.0,62892.0,0.21752493]
[1719825817830,1.04843434,62893.0,62892.0,0.21752493]
[1719825817979,1.04843434,62893.0,62892.0,0.21812493]
[1719825818377,1.03623636,62893.0,62892.0,0.21812493]
[1719825819179,0.24123636,62893.0,62892.0,0.21812493]
[1719825819381,0.07889738,62893.0,62892.0,0.21812493]
[1719825819787,0.06909775,62893.0,62892.0,0.21752493]
[1719825820009,0.22807476,62893.0,62892.0,0.21812493]
[1719825820207,0.21889738,62893.0,62892.0,0.21812493]
[1719825820445,0.53689738,62893.0,62892.0,0.21812493]
[1719825820654,0.53389738,62893.0,62892.0,0.21812493]
[1719825821006,0.69723636,62893.0,62892.0,0.21752493]
[1719825821239,1.01755576,62893.0,62892.0,0.21752493]
[1719825821436,1.01755576,62893.0,62892.0,0.21812493]
[1719825821437,1.02742886,62893.0,62892.0,0.21812493]
[1719825822144,1.02742886,62893.0,62892.0,0.21752493]
[1719825823766,1.00536087,62893.0,62892.0,0.21812493]
[1719825823971,1.01523067,62893.0,62892.0,0.21812493]
[1719825824386,1.01523067,62893.0,62892.0,0.21752493]
[1719825824816,1.02742316,62893.0,62892.0,0.21752493]
[1719825825248,0.70942316,62893.0,62892.0,0.21812493]
[1719825825438,0.69723067,62893.0,62892.0,0.21812493]
[1719825825654,0.21689169,62893.0,62892.0,0.21812493]
[1719825826394,0.05789169,62893.0,62892.0,0.21812493]
[1719825826612,0.05789169,62893.0,62892.0,0.31531062]
[1719825826861,0.01294173,62893.0,62892.0,0.37712693]
[1719825827035,0.00307193,62893.0,62892.0,0.37712693]
[1719825827399,0.00307193,62893.0,62892.0,0.69513193]
[1719825827509,0.01294218,62893.0,62892.0,0.69513193]
[1719825827708,0.01294218,62893.0,62892.0,0.52611072]
[1719825828799,0.01294218,62893.0,62892.0,0.36710872]
[1719825829409,0.21653135,62893.0,62892.0,0.21812493]
[1719825829610,0.21653135,62893.0,62892.0,0.29052493]
[1719825829784,0.05753135,62893.0,62892.0,0.21812493]